bitfinex-derivatives/quotes_BTCF0:USTF0_20210705
["timestamp","ask_amount","ask_price","bid_price","bid_amount"]
[1625484266004,0.059,33945.0,33942.0,3.02406993]
[1625484266105,0.059,33945.0,33942.0,2.94186993]
[1625484266211,4.7682,33943.0,33942.0,2.88286993]
[1625484266312,4.7682,33943.0,33942.0,2.85306993]
[1625484266410,4.7682,33943.0,33938.0,3.05747769]
[1625484266513,0.703,33939.0,33938.0,3.01557769]
[1625484266613,0.92046,33939.0,33895.0,0.057]
[1625484266712,2.567,33929.0,33928.0,4.106901]
[1625484266812,2.92874,33929.0,33928.0,3.676801]
[1625484266914,2.86974,33929.0,33918.0,4.55711654]
[1625484267014,0.302,33920.0,33918.0,4.36601654]
[1625484267114,0.87185,33920.0,33918.0,1.31261654]
[1625484267216,0.93085,33920.0,33918.0,1.31261654]
[1625484267312,0.56985,33920.0,33918.0,1.17121654]
[1625484267413,0.39305,33920.0,33918.0,0.87061654]
[1625484267513,0.2358,33919.0,33918.0,0.87061654]
[1625484267613,0.2948,33919.0,33918.0,0.79811654]
[1625484267715,0.2358,33919.0,33918.0,0.76651654]
[1625484267815,1.19810176,33919.0,33918.0,0.73641654]
[1625484267917,1.19810176,33919.0,33918.0,0.73281654]
[1625484268014,1.19810176,33919.0,33918.0,0.61881654]
[1625484268116,1.19810176,33919.0,33918.0,0.50321654]
[1625484268216,1.34520176,33919.0,33918.0,0.39811654]
[1625484268316,1.28620176,33919.0,33908.0,4.80644085]
[1625484268418,1.34520176,33919.0,33908.0,4.34084085]
[1625484268516,0.8652,33909.0,33908.0,4.19594085]
[1625484268670,1.08167,33909.0,33908.0,4.06294085]
[1625484268718,1.14067,33909.0,33908.0,3.93584085]
[1625484268819,6.18437,33909.0,33908.0,3.63594084]
[1625484268919,6.12537,33909.0,33908.0,3.38344084]
[1625484269019,7.39557,33909.0,33908.0,3.38344084]
[1625484269123,7.39557,33909.0,33908.0,3.35994084]
[1625484269220,6.27217,33909.0,33908.0,3.34814084]
[1625484269436,6.27217,33909.0,33908.0,3.34064084]
[1625484269527,6.27217,33909.0,33877.0,0.2]
[1625484269528,7.78219711,33909.0,33877.0,0.2]
[1625484269733,7.78219711,33909.0,33877.0,0.259]
[1625484269835,0.96230176,33878.0,33877.0,0.259]
[1625484269937,0.90330176,33878.0,33877.0,0.2]
[1625484270043,0.90330176,33878.0,33877.0,0.259]
[1625484270120,1.18201176,33878.0,33859.0,0.24057544]
[1625484270222,1.18201176,33878.0,33867.0,0.13311181]
[1625484270638,1.18201176,33878.0,33867.0,0.059]
[1625484270723,1.18201176,33878.0,33803.0,0.057]
[1625484270824,1.18201176,33878.0,33867.0,0.059]
[1625484271025,1.18201176,33878.0,33803.0,0.057]
[1625484271124,1.18201176,33878.0,33820.0,0.109]
[1625484271324,1.24101176,33878.0,33820.0,0.109]
[1625484271595,0.236,33865.0,33820.0,0.109]
[1625484272106,0.8706,33858.0,33820.0,0.109]
[1625484272132,0.8706,33838.0,33820.0,0.109]
[1625484272161,0.8706,33838.0,33821.0,0.982]
[1625484272189,0.24057544,33827.0,33826.0,0.24057544]
[1625484272209,0.24057544,33827.0,33822.0,0.24057544]
[1625484272326,0.8706,33856.0,33822.0,0.24057544]
[1625484272443,0.8706,33856.0,33821.0,1.041]
[1625484272527,0.8706,33856.0,33827.0,0.027]
[1625484272627,0.8706,33856.0,33821.0,0.841]
[1625484272730,0.23436,33851.0,33827.0,0.059]
[1625484273030,0.23436,33851.0,33827.0,0.049]
[1625484273481,0.8714,33849.0,33827.0,0.049]
[1625484273584,0.2364,33831.0,33827.0,0.049]
[1625484273724,0.44857,33831.0,33827.0,0.049]
[1625484273882,0.96230176,33828.0,33827.0,0.049]
[1625484273982,0.96230176,33828.0,33820.0,0.014]
[1625484274082,0.96230176,33828.0,33798.0,0.24057544]
[1625484274282,0.96230176,33828.0,33798.0,0.29957544]
[1625484275236,0.96230176,33828.0,33798.0,0.059]
[1625484275434,0.96230176,33828.0,33772.0,4.18528986]
[1625484275534,1.02130176,33828.0,33798.0,0.059]
[1625484275687,0.2364,33824.0,33772.0,3.98628986]
[1625484275735,0.2364,33809.0,33748.0,0.0879]
[1625484275834,0.24057544,33793.0,33792.0,0.24057544]
[1625484275935,0.24057544,33793.0,33792.0,0.059]
[1625484277038,0.24057544,33793.0,33614.0,0.01753024]
[1625484277137,0.059,33790.0,33724.0,0.0898]
[1625484277244,0.29957544,33793.0,33614.0,0.07453024]
[1625484277341,0.24057544,33793.0,33750.0,0.06433333]
[1625484277439,0.2364,33791.0,33750.0,0.06433333]
[1625484277540,0.56468,33791.0,33750.0,0.06433333]
[1625484277839,0.24057544,33772.0,33771.0,0.24057544]
[1625484278040,0.24057544,33772.0,33771.0,0.29957544]
[1625484278141,0.24057544,33772.0,33750.0,0.00533333]
[1625484278245,0.45602544,33772.0,33750.0,0.06433333]
[1625484278565,0.51502544,33772.0,33750.0,0.06433333]
[1625484278670,0.45602544,33772.0,33750.0,0.06433333]
[1625484278759,0.51502544,33772.0,33750.0,0.06433333]
[1625484278869,0.2364,33760.0,33750.0,0.06433333]
[1625484279548,0.8728,33763.0,33750.0,0.06433333]
[1625484279649,0.24057544,33772.0,33750.0,0.06433333]
[1625484279749,0.2368,33758.0,33750.0,0.06433333]
[1625484279851,0.96230176,33751.0,33750.0,0.06433333]
[1625484279949,0.96230176,33751.0,33735.0,0.09890877]
[1625484280058,0.96230176,33751.0,33735.0,0.059]
[1625484280351,1.02130176,33751.0,33503.0,0.7369]
[1625484280453,1.26188176,33751.0,33503.0,0.7369]
[1625484280551,1.26188176,33751.0,33700.0,0.7755]
[1625484281010,0.2368,33743.0,33700.0,0.7755]
[1625484281110,0.58903,33743.0,33700.0,0.7755]
[1625484281329,0.2368,33726.0,33700.0,0.7755]
[1625484281904,0.24057544,33708.0,33707.0,0.01857544]
[1625484282117,0.24057544,33711.0,33707.0,0.01857544]
[1625484282205,0.24057544,33715.0,33707.0,0.07757544]
[1625484282554,0.24057544,33715.0,33707.0,0.059]
[1625484282765,0.24057544,33715.0,33700.0,0.5355]
[1625484282855,0.2368,33710.0,33700.0,0.5355]
[1625484283056,0.2368,33710.0,33700.0,0.5891]
[1625484283154,0.8754,33709.0,33700.0,0.2628]
[1625484283255,0.8754,33709.0,33700.0,0.0482]
[1625484283354,0.059,33709.0,33610.0,0.0891]
[1625484283454,0.059,33709.0,33681.0,0.13906792]
[1625484283856,0.24057544,33692.0,33688.0,0.24057544]
[1625484283955,0.24057544,33692.0,33688.0,0.29957544]
[1625484284057,0.24057544,33692.0,33688.0,0.24057544]
[1625484284158,0.24057544,33695.0,33688.0,0.24057544]
[1625484284255,0.2372,33712.0,33688.0,0.29957544]
[1625484284356,0.2962,33712.0,33688.0,0.29957544]
[1625484284457,0.059,33712.0,33688.0,0.29957544]
[1625484284557,0.9959,33781.0,33688.0,0.29957544]
[1625484284656,1.282,33721.0,33688.0,0.29957544]
[1625484284756,0.9959,33781.0,33688.0,0.24057544]
[1625484284856,0.059,33721.0,33688.0,0.54837544]
[1625484284956,0.29557,33767.0,33688.0,0.54837544]
[1625484285057,0.35457,33767.0,33688.0,0.54837544]
[1625484285157,0.35457,33767.0,33697.0,3.8765]
[1625484285260,0.35457,33767.0,33697.0,4.25046]
[1625484285557,0.059,33767.0,33697.0,4.25046]
[1625484285735,0.9562,33780.0,33698.0,0.445167]
[1625484285808,0.9562,33780.0,33705.0,0.8876]
[1625484285910,1.25577544,33780.0,33779.0,0.24057544]
[1625484286008,1.03477544,33780.0,33779.0,0.24057544]
[1625484286108,0.059,33779.0,33703.0,0.4128]
[1625484286410,0.059,33779.0,33705.0,0.2486]
[1625484286608,0.24124747,33780.0,33705.0,0.2486]
[1625484286710,0.24124747,33780.0,33751.0,0.26715]
[1625484286810,0.05967203,33780.0,33751.0,0.26715]
[1625484287038,0.059,33780.0,33751.0,0.26715]
[1625484287137,0.24057544,33783.0,33751.0,0.26715]
[1625484287309,0.29957544,33783.0,33751.0,0.26715]
[1625484287460,0.24057544,33783.0,33751.0,0.23915]
[1625484287560,0.059,33783.0,33751.0,0.23915]
[1625484287730,0.059,33783.0,33751.0,0.29815]
[1625484287841,0.24057544,33787.0,33751.0,0.29815]
[1625484287951,0.24057544,33787.0,33786.0,0.48115088]
[1625484288050,0.24057544,33798.0,33786.0,0.48115088]
[1625484288141,0.059,33787.0,33786.0,0.24057544]
[1625484288237,0.059,33798.0,33762.0,0.20738]
[1625484288310,0.059,33787.0,33762.0,0.20738]
[1625484288432,0.059,33787.0,33762.0,0.26638]
[1625484288762,4.47227544,33833.0,33762.0,0.26638]
[1625484288862,4.53127544,33833.0,33762.0,0.26638]
[1625484289762,0.7146,33807.0,33762.0,0.26638]
[1625484289862,0.059,33807.0,33751.0,0.23915]
[1625484289962,0.059,33807.0,33787.0,0.24057544]
[1625484289963,0.24057544,33788.0,33787.0,0.24057544]
[1625484290764,0.29957544,33788.0,33784.0,0.24057544]
[1625484290864,0.29957544,33788.0,33706.0,0.9643]
[1625484290968,0.53018544,33788.0,33706.0,0.9643]
[1625484291066,0.47118544,33788.0,33706.0,0.9643]
[1625484291467,0.47118544,33788.0,33741.0,3.845]
[1625484291731,0.53018544,33788.0,33741.0,3.845]
[1625484291833,0.47118544,33788.0,33741.0,3.845]
[1625484291932,0.24057544,33781.0,33780.0,0.24057544]
[1625484292026,0.24057544,33781.0,33780.0,0.29957544]
[1625484292224,0.24057544,33781.0,33780.0,0.24057544]
[1625484292536,0.24057544,33788.0,33780.0,0.24057544]
[1625484292626,0.24057544,33788.0,33780.0,0.57748544]
[1625484292731,0.24057544,33788.0,33780.0,0.63648544]
[1625484292829,0.29957544,33788.0,33780.0,0.63648544]
[1625484292920,0.29957544,33788.0,33780.0,0.57748544]
[1625484292921,0.24057544,33788.0,33780.0,0.57748544]
[1625484293028,0.24057544,33788.0,33780.0,0.63648544]
[1625484293133,0.9859,33828.0,33780.0,0.63648544]
[1625484293231,0.2954,33816.0,33780.0,0.63648544]
[1625484293971,0.24057544,33792.0,33791.0,0.24057544]
[1625484294071,0.29957544,33792.0,33791.0,0.24057544]
[1625484294371,0.24057544,33792.0,33780.0,0.24057544]
[1625484294475,0.49262544,33792.0,33780.0,0.059]
[1625484294571,0.55162544,33792.0,33701.0,0.006]
[1625484294671,0.55162544,33792.0,33741.0,0.059]
[1625484294771,0.55162544,33792.0,33736.0,0.1694]
[1625484294873,0.55162544,33792.0,33736.0,0.059]
[1625484295074,0.2366,33787.0,33736.0,0.059]
[1625484295275,0.8728,33784.0,33736.0,0.059]
[1625484295374,1.19841,33784.0,33736.0,0.059]
[1625484295881,0.32561,33784.0,33736.0,0.059]
[1625484295984,0.24057544,33763.0,33762.0,0.24057544]
[1625484296173,0.24057544,33763.0,33745.0,0.2983]
[1625484296293,0.45572544,33763.0,33737.0,0.004]
[1625484296373,0.45572544,33763.0,33737.0,0.063]
[1625484296924,0.45572544,33763.0,33737.0,0.004]
[1625484297024,0.45572544,33763.0,33737.0,0.063]
[1625484297325,0.9657,33832.0,33737.0,0.063]
[1625484297426,0.063,33794.0,33737.0,0.30193]
[1625484297932,0.063,33794.0,33786.0,0.24057544]
[1625484298036,0.24057544,33788.0,33786.0,0.24057544]
[1625484298234,0.24057544,33791.0,33786.0,0.24057544]
[1625484298334,0.29957544,33791.0,33786.0,0.24057544]
[1625484298736,0.24057544,33791.0,33786.0,0.29957544]
[1625484298835,0.29957544,33791.0,33786.0,0.29957544]
[1625484298936,0.24057544,33791.0,33786.0,0.24057544]
[1625484299040,0.29957544,33791.0,33786.0,0.24057544]
[1625484299161,0.24057544,33791.0,33786.0,0.24057544]
[1625484299253,0.29957544,33791.0,33786.0,0.24057544]
[1625484299536,0.24057544,33791.0,33786.0,0.24057544]
[1625484300103,0.004,33794.0,33786.0,0.29957544]
[1625484300440,0.004,33794.0,33781.0,0.22697]
[1625484300542,0.004,33794.0,33781.0,0.28597]
[1625484300639,0.004,33794.0,33782.0,0.9721]
[1625484300739,0.004,33794.0,33782.0,1.0311]
[1625484302040,0.004,33794.0,33793.0,0.96230176]
[1625484302139,0.004,33794.0,33793.0,1.18258176]
[1625484302239,0.004,33794.0,33793.0,1.24158176]
[1625484303142,0.004,33794.0,33793.0,1.02130176]
[1625484303493,0.004,33794.0,33793.0,0.96230176]
[1625484303594,0.004,33794.0,33793.0,1.02130176]
[1625484303996,0.004,33794.0,33793.0,0.48115088]
[1625484304094,0.004,33794.0,33793.0,0.54015088]
[1625484304196,0.24057544,33801.0,33793.0,0.54015088]
[1625484304445,0.24057544,33808.0,33793.0,0.54015088]
[1625484304547,0.29957544,33808.0,33793.0,0.54015088]
[1625484305195,0.24057544,33808.0,33793.0,0.54015088]
[1625484305296,0.004,33795.0,33793.0,0.54015088]
[1625484305699,0.004,33795.0,33793.0,0.48115088]
[1625484306001,0.24057544,33794.0,33793.0,0.48115088]
[1625484306201,0.24057544,33797.0,33791.0,0.24057544]
[1625484306303,0.29957544,33797.0,33791.0,0.45644544]
[1625484306400,0.02470544,33791.0,33788.0,0.24057544]
[1625484306500,0.02470544,33791.0,33788.0,0.29957544]
[1625484306901,0.02470544,33791.0,33788.0,0.059]
[1625484307000,0.24057544,33803.0,33788.0,0.059]
[1625484307101,0.24057544,33803.0,33788.0,0.3132]
[1625484307905,0.29957544,33803.0,33788.0,0.3132]
[1625484308002,0.29957544,33803.0,33802.0,0.24057544]
[1625484308105,0.29957544,33803.0,33802.0,0.56573544]
[1625484308405,0.29957544,33803.0,33802.0,0.26713]
[1625484308503,0.29957544,33803.0,33802.0,0.30844]
[1625484308604,0.29957544,33803.0,33802.0,0.04131]
[1625484308906,0.29957544,33803.0,33791.0,0.004]
[1625484309205,0.24057544,33803.0,33791.0,0.063]
[1625484309305,0.24057544,33803.0,33791.0,0.004]
[1625484309408,0.29957544,33803.0,33791.0,0.063]
[1625484310006,0.29957544,33803.0,33794.0,0.24057544]
[1625484310112,0.24057544,33795.0,33794.0,0.29957544]
[1625484311057,0.24057544,33795.0,33794.0,0.059]
[1625484311315,0.24057544,33795.0,33791.0,0.004]
[1625484311509,0.24057544,33795.0,33791.0,0.063]
[1625484312012,0.24057544,33795.0,33791.0,0.004]
[1625484312111,0.72172632,33792.0,33791.0,0.004]
[1625484312210,0.72172632,33792.0,33791.0,0.063]
[1625484312310,0.72172632,33792.0,33791.0,0.004]
[1625484312964,0.78072632,33792.0,33789.0,0.006]
[1625484313469,0.72172632,33792.0,33789.0,0.006]
[1625484314214,0.72172632,33792.0,33787.0,0.24857544]
[1625484314215,0.72172632,33792.0,33790.0,0.004]
[1625484314313,0.72172632,33792.0,33790.0,0.24297]
[1625484315113,0.72111402,33792.0,33790.0,0.24297]
[1625484315463,0.72111402,33792.0,33791.0,0.00409588]
[1625484315868,0.72111402,33792.0,33791.0,0.06309588]
[1625484315967,0.004,33815.0,33791.0,0.06309588]
[1625484316067,0.24057544,33804.0,33803.0,0.24057544]
[1625484316165,0.24057544,33804.0,33803.0,0.54731544]
[1625484316516,0.24057544,33811.0,33803.0,0.54731544]
[1625484316618,0.004,33815.0,33803.0,0.54731544]
[1625484316717,0.059,33815.0,33803.0,0.60631544]
[1625484316817,0.1931504,33887.0,33803.0,0.60631544]
[1625484316917,0.9653,33838.0,33803.0,0.60631544]
[1625484317119,0.9653,33838.0,33803.0,0.30036]
[1625484317420,0.9653,33838.0,33804.0,0.00409583]
[1625484317520,0.9653,33838.0,33804.0,0.06309583]
[1625484317724,0.9653,33838.0,33804.0,0.059]
[1625484317823,0.9653,33838.0,33799.0,0.24057544]
[1625484317922,0.9653,33838.0,33804.0,0.059]
[1625484318023,0.9653,33838.0,33793.0,0.24057544]
[1625484318124,0.24057544,33808.0,33807.0,0.24057544]
[1625484318223,0.24057544,33808.0,33803.0,0.24057544]
[1625484318224,0.24057544,33808.0,33803.0,0.18157544]
[1625484318323,0.24057544,33808.0,33803.0,0.24057544]
[1625484318426,0.24057544,33808.0,33803.0,0.059]
[1625484318623,0.24057544,33808.0,33796.0,0.24057544]
[1625484318723,0.29957544,33808.0,33796.0,0.29957544]
[1625484318824,0.29957544,33808.0,33796.0,0.24057544]
[1625484318924,0.29957544,33808.0,33797.0,0.00409563]
[1625484319074,0.29957544,33808.0,33796.0,0.24057544]
[1625484319473,0.29957544,33808.0,33797.0,0.00409124]
[1625484320125,0.48115088,33798.0,33792.0,0.24057544]
[1625484320224,0.48115088,33798.0,33792.0,0.29957544]
[1625484320574,0.48115088,33798.0,33793.0,0.004087]
[1625484320676,0.48115088,33798.0,33793.0,0.063087]
[1625484320876,0.24057544,33800.0,33793.0,0.063087]
[1625484321077,0.24057544,33800.0,33794.0,0.00408655]
[1625484321176,0.24057544,33800.0,33794.0,0.37679655]
[1625484321631,0.24057544,33800.0,33795.0,0.00408636]
[1625484322080,0.24057544,33800.0,33795.0,0.06308636]
[1625484322181,0.24057544,33800.0,33799.0,0.48115088]
[1625484322280,0.24057544,33808.0,33799.0,0.48115088]
[1625484322381,0.29957544,33808.0,33799.0,0.54015088]
[1625484322679,0.29957544,33808.0,33800.0,0.00408589]
[1625484322879,0.29957544,33808.0,33800.0,0.06308589]
[1625484322981,0.24057544,33808.0,33800.0,0.06308589]
[1625484323281,0.24057544,33808.0,33801.0,0.004086]
[1625484323381,0.24057544,33808.0,33801.0,0.277536]
[1625484323834,0.24057544,33808.0,33802.0,0.00408591]
[1625484323938,0.22706701,33810.0,33802.0,0.06308591]
[1625484324050,0.059,33808.0,33802.0,0.00408591]
[1625484324138,0.059,33808.0,33807.0,0.24057544]
[1625484324234,0.059,33808.0,33807.0,0.23648953]
[1625484324584,3.55519503,33808.0,33798.0,3.6e-07]
[1625484324683,3.55519503,33808.0,33787.0,0.004]
[1625484324790,3.55519503,33808.0,33787.0,0.063]
[1625484324992,3.55519503,33808.0,33788.0,0.01284766]
[1625484325090,3.55519503,33808.0,33788.0,0.07184766]
[1625484325391,0.07008432,33801.0,33788.0,0.07184766]
[1625484325492,0.07008432,33801.0,33789.0,0.01284727]
[1625484325591,0.07008432,33801.0,33789.0,0.07184727]
[1625484326047,0.21029808,33804.0,33790.0,0.01284727]
[1625484326143,0.24057544,33794.0,33793.0,0.24057544]
[1625484326244,0.22257544,33794.0,33793.0,0.55195544]
[1625484326594,0.22257544,33794.0,33793.0,0.56480247]
[1625484327145,0.22257544,33794.0,33793.0,0.55603732]
[1625484327646,0.22257544,33794.0,33793.0,0.56480259]
[1625484327847,0.5603348,33804.0,33793.0,0.56480259]
[1625484328048,0.6193348,33804.0,33793.0,0.31242259]
[1625484328148,0.48115088,33794.0,33793.0,0.31242259]
[1625484328248,0.5603348,33804.0,33794.0,0.00408222]
[1625484328348,0.6193348,33804.0,33794.0,0.06308222]
[1625484328551,0.6193348,33804.0,33794.0,0.07184824]
[1625484328799,0.6193348,33804.0,33795.0,0.0128495]
[1625484328900,0.55964517,33800.0,33795.0,0.0128495]
[1625484328999,0.34857418,33792.0,2622.0,0.005]
[1625484329103,0.58882418,33792.0,33722.0,0.5]
[1625484329201,0.64782418,33792.0,33732.0,0.0892]
[1625484329300,0.64782418,33792.0,33790.0,0.01]
[1625484329703,0.64782418,33792.0,33768.0,0.03037854]
[1625484329704,0.049,33790.0,33768.0,0.03037854]
[1625484329803,0.049,33790.0,33768.0,0.01753864]
[1625484330102,0.049,33790.0,33263.0,0.14273395]
[1625484330205,0.96230176,33769.0,33754.0,0.7347]
[1625484330303,1.24566176,33769.0,33754.0,0.5297]
[1625484330402,1.30466176,33769.0,33754.0,0.5297]
[1625484330555,1.86099949,33769.0,33754.0,0.5297]
[1625484330654,1.86099949,33769.0,33755.0,0.00406714]
[1625484330955,1.80199949,33769.0,33754.0,0.47476714]
[1625484331056,1.86099949,33769.0,33754.0,0.47476714]
[1625484331459,0.55442013,33760.0,33754.0,0.47476714]
[1625484331556,0.85633013,33760.0,33754.0,0.41576714]
[1625484331656,0.91533013,33760.0,33698.0,0.04389305]
[1625484331758,0.91533013,33760.0,33698.0,0.10289305]
[1625484331956,0.91533013,33760.0,33699.0,0.01054186]
[1625484332056,3.45284948,33755.0,33699.0,0.0823886]
[1625484332156,0.24057544,33713.0,33712.0,0.24057544]
[1625484332260,0.24694,33714.0,33712.0,0.29957544]
[1625484332456,0.24694,33714.0,33712.0,0.24057544]
[1625484332557,0.24694,33714.0,33712.0,0.29957544]
[1625484332656,0.24694,33714.0,33713.0,0.01284887]
[1625484332856,0.24694,33714.0,33713.0,0.059]
[1625484332956,0.24694,33714.0,33708.0,0.24057544]
[1625484333155,0.24694,33714.0,33708.0,0.059]
[1625484333255,0.24694,33714.0,33652.0,0.9629]
[1625484333357,0.24694,33714.0,33693.0,0.2284]
[1625484333758,0.30594,33714.0,33694.0,0.00406877]
[1625484333858,0.30594,33714.0,33694.0,0.06306877]
[1625484333957,0.24057544,33723.0,33694.0,0.06306877]
[1625484334057,0.9325,33759.0,33694.0,0.06306877]
[1625484334158,1.10152653,33744.0,33737.0,0.24057544]
[1625484334263,0.24057544,33740.0,33737.0,0.56562544]
[1625484334360,0.24057544,33740.0,33737.0,0.50662544]
[1625484334460,1.04252653,33744.0,33737.0,0.56562544]
[1625484334863,0.84252653,33744.0,33737.0,0.56562544]
[1625484334962,0.55111828,33745.0,33734.0,3.89347544]
[1625484335064,0.55111828,33745.0,33737.0,0.27159]
[1625484335562,0.55200711,33753.0,33737.0,0.27159]
[1625484335963,0.39577229,33753.0,33737.0,0.27159]
[1625484336164,0.39577229,33753.0,33752.0,0.96230176]
[1625484336266,0.39577229,33753.0,33752.0,1.18030176]
[1625484336363,0.55404116,33764.0,33752.0,1.23930176]
[1625484336816,0.8312294,33766.0,33752.0,0.99872632]
[1625484336915,0.8312294,33766.0,33752.0,0.3615383]
[1625484337770,0.8312294,33766.0,33737.0,0.21259]
[1625484337967,0.8902294,33766.0,33737.0,0.059]
[1625484338167,0.48115088,33738.0,33737.0,0.059]
[1625484338270,0.42215088,33738.0,33735.0,0.24057544]
[1625484338369,0.42215088,33738.0,33735.0,0.29957544]
[1625484338517,0.28808,33745.0,33735.0,0.24057544]
[1625484338620,0.28497,33738.0,33735.0,0.29957544]
[1625484339119,0.28497,33738.0,33729.0,0.24057544]
[1625484339219,0.34397,33738.0,33693.0,0.9776]
[1625484339619,0.34397,33738.0,33693.0,1.0366]
[1625484339820,0.34397,33738.0,33694.0,0.00408311]
[1625484339918,0.34397,33738.0,33694.0,0.06308311]
[1625484340220,0.24057544,33716.0,33715.0,0.24057544]
[1625484340333,0.54931544,33716.0,33715.0,0.24057544]
[1625484340520,0.60831544,33716.0,33695.0,0.00408421]
[1625484340620,0.60831544,33716.0,33695.0,0.06308421]
[1625484340720,0.54931544,33716.0,33652.0,0.9878]
[1625484340820,0.54931544,33716.0,33681.0,0.13906792]
[1625484340821,0.60831544,33716.0,33681.0,0.13906792]
[1625484341021,0.60831544,33716.0,33682.0,0.01461313]
[1625484341126,0.60831544,33716.0,33682.0,0.07361313]
[1625484341622,0.60831544,33716.0,33683.0,0.00408371]
[1625484341725,0.60831544,33716.0,33683.0,0.06308371]
[1625484342123,0.60831544,33716.0,33684.0,0.00408416]
[1625484342223,0.24057544,33707.0,33704.0,0.24057544]
[1625484342322,0.54192544,33707.0,33684.0,0.00408416]
[1625484342422,0.54192544,33707.0,33684.0,0.059]
[1625484342904,0.54192544,33707.0,33599.0,0.5]
[1625484342974,0.54192544,33707.0,33574.0,0.5]
[1625484343074,0.54192544,33707.0,33652.0,1.0468]
[1625484343275,0.54192544,33707.0,33653.0,0.00408576]
[1625484343376,0.54192544,33707.0,33653.0,0.06308576]
[1625484343729,0.30135,33707.0,33653.0,0.06308576]
[1625484343828,0.30135,33707.0,33654.0,0.00408624]
[1625484343927,0.30135,33707.0,33654.0,0.06308624]
[1625484344129,0.30135,33707.0,33654.0,0.059]
[1625484344329,0.24057544,33680.0,33677.0,0.24057544]
[1625484344529,0.24057544,33680.0,33677.0,0.29957544]
[1625484344729,0.24057544,33680.0,33677.0,0.059]
[1625484345732,0.24057544,33680.0,33678.0,0.0105812]
[1625484346185,0.24057544,33683.0,33675.0,0.01058325]
[1625484346296,0.24057544,33683.0,33678.0,0.12902632]
[1625484346397,0.24057544,33686.0,33675.0,0.01058325]
[1625484346495,0.29957544,33686.0,33675.0,0.01058325]
[1625484346587,0.29957544,33686.0,33675.0,0.059]
[1625484347331,0.29957544,33686.0,33676.0,0.004]
[1625484347431,0.29957544,33686.0,33676.0,0.063]
[1625484348084,0.29957544,33686.0,33676.0,0.004]
[1625484348283,0.72172632,33677.0,33676.0,0.004]
[1625484348383,0.95123632,33677.0,33676.0,0.004]
[1625484348671,1.01023632,33677.0,33676.0,0.004]
[1625484349236,1.01023632,33677.0,33674.0,0.006]
[1625484349536,0.053,33674.0,33609.0,0.9722]
[1625484349652,0.006,33667.0,33631.0,0.12225084]
[1625484349736,0.059,33667.0,33631.0,0.12225084]
[1625484349839,0.31631,33667.0,33631.0,0.12225084]
[1625484350363,0.31631,33667.0,33632.0,0.01052962]
[1625484350549,0.31631,33667.0,33632.0,0.05902962]
[1625484350669,0.31631,33667.0,33609.0,0.9822]
[1625484350753,0.31631,33667.0,33609.0,0.0398]
[1625484350977,4.6981,33656.0,33610.0,0.01044652]
[1625484351044,4.7571,33656.0,33610.0,0.01044652]
[1625484351145,5.01093,33656.0,33610.0,0.04024652]
[1625484351245,5.01093,33656.0,33610.0,0.01044652]
[1625484351346,0.8764,33642.0,33610.0,0.01044652]
[1625484351443,1.21972,33642.0,33603.0,0.0898]
[1625484351542,1.21972,33642.0,33585.0,0.088]
[1625484351642,1.21972,33642.0,33588.0,0.11284598]
[1625484352042,1.21972,33642.0,33589.0,0.01026498]
[1625484352144,1.21972,33642.0,33589.0,0.04006498]
[1625484352246,0.2374,33637.0,33589.0,0.04006498]
[1625484352344,0.24057544,33592.0,33591.0,0.24057544]
[1625484352445,0.24057544,33592.0,33591.0,0.27037544]
[1625484352644,0.24057544,33596.0,33591.0,0.2806455]
[1625484352745,0.29957544,33596.0,33591.0,0.01027006]
[1625484353196,0.29957544,33596.0,33588.0,0.08304598]
[1625484354405,0.72172632,33589.0,33588.0,0.08304598]
[1625484354505,0.78072632,33589.0,33588.0,0.08304598]
[1625484354707,0.78072632,33589.0,33565.0,0.24057544]
[1625484354810,0.059,33588.0,33562.0,0.24057544]
[1625484355106,0.059,33588.0,33363.0,0.7369]
[1625484355206,0.059,33588.0,33513.0,0.2292]
[1625484355309,0.059,33588.0,33513.0,0.4284]
[1625484355908,0.059,33588.0,33513.0,0.1992]
[1625484356359,0.24057544,33547.0,33544.0,0.24057544]
[1625484356661,0.24057544,33547.0,33540.0,0.24057544]
[1625484356759,0.24057544,33547.0,33540.0,0.27037544]
[1625484356859,0.24057544,33547.0,33540.0,0.24057544]
[1625484356960,0.29957544,33547.0,33540.0,0.24057544]
[1625484357059,0.24057544,33547.0,33540.0,0.27037544]
[1625484357259,0.24057544,33547.0,33540.0,0.24057544]
[1625484357360,0.24057544,33547.0,33540.0,0.0298]
[1625484357462,0.29957544,33547.0,33513.0,0.1694]
[1625484358111,0.24057544,33547.0,33513.0,0.1694]
[1625484358311,0.24037544,33547.0,33513.0,0.1694]
[1625484358411,0.24057544,33538.0,33537.0,0.24057544]
[1625484358511,0.24037544,33547.0,33537.0,0.24057544]
[1625484358761,0.28547,33606.0,33537.0,0.24057544]
[1625484358862,0.059,33606.0,33537.0,0.47523544]
[1625484359428,0.004,33599.0,33581.0,0.004]
[1625484359530,0.063,33599.0,33581.0,0.004]
[1625484360414,0.96230176,33582.0,33581.0,0.004]
[1625484360514,1.02130176,33582.0,33581.0,0.004]
[1625484361216,0.055,33581.0,33537.0,0.004]
[1625484361614,0.055,33581.0,33439.0,0.5]
[1625484361715,0.055,33581.0,33497.0,0.1678]
[1625484361816,0.055,33581.0,33501.0,0.9061]
[1625484362418,0.24057544,33533.0,33532.0,0.24057544]
[1625484362516,0.24057544,33533.0,33532.0,0.49046544]
[1625484363518,0.24057544,33533.0,33532.0,0.004]
[1625484363869,0.23757544,33533.0,33532.0,0.004]
[1625484364219,0.23397544,33533.0,33532.0,0.004]
[1625484364420,0.46885088,33533.0,33532.0,0.004]
[1625484364520,0.46375088,33533.0,33532.0,0.004]
[1625484364619,0.45635088,33533.0,33532.0,0.004]
[1625484364719,0.44825088,33533.0,33532.0,0.004]
[1625484364820,0.44465088,33533.0,33532.0,0.004]
[1625484365221,0.44465088,33533.0,33519.0,0.24057544]
[1625484365323,0.50365088,33533.0,33519.0,0.24057544]
[1625484365425,0.50365088,33533.0,33519.0,0.24457544]
[1625484365539,0.50365088,33533.0,33519.0,0.004]
[1625484365823,0.44465088,33533.0,33519.0,0.004]